bitfinex-derivatives/quotes_ETHF0:USTF0_20250824
["timestamp","ask_amount","ask_price","bid_price","bid_amount"]
[1755993953014,0.48978196,4789.3,4789.2,1.80210277]
[1755993954914,0.48978196,4789.3,4789.2,0.50924417]
[1755993955908,0.48978196,4789.3,4789.2,0.74734417]
[1755993956710,0.48978196,4789.3,4789.2,1.23204417]
[1755993956911,0.48978196,4789.3,4789.2,1.60614417]
[1755993959020,0.48978196,4789.3,4789.2,0.50924417]
[1755993959520,0.48978196,4789.3,4789.2,0.27514417]
[1755993959817,0.41776,4789.0,4788.9,0.2341]
[1755993960016,19.42476,4789.0,4788.9,0.50909822]
[1755993960220,19.91454196,4789.0,4788.9,0.27499822]
[1755993960928,0.41781,4788.4,4788.3,0.2341]
[1755993961223,23.12439196,4788.4,4788.3,0.27501894]
[1755993962015,23.12439196,4788.4,4788.3,0.50911894]
[1755993962414,23.12439196,4788.4,4788.3,0.2341]
[1755993963021,0.41785,4788.0,4787.9,0.2381]
[1755993963222,19.91763196,4788.0,4787.9,0.74691297]
[1755993964515,19.91763196,4788.0,4787.9,0.4722]
[1755993966018,19.91763196,4788.0,4787.5,0.4428]
[1755993966019,0.41788,4787.6,4787.5,0.4428]
[1755993966322,19.91366196,4787.6,4787.5,0.2174]
[1755993967628,19.91366196,4787.6,4787.1,0.2174]
[1755993967629,0.41791,4787.3,4787.1,0.2174]
[1755993967819,0.41796,4786.7,4786.6,0.2254]
[1755993968020,19.42796,4786.7,4786.6,0.49969207]
[1755993968221,19.42796,4786.7,4786.6,0.65999207]
[1755993968421,19.42796,4786.7,4786.6,0.71709207]
[1755993968619,19.42796,4786.7,4786.6,0.4428]
[1755993969023,19.42796,4786.7,4786.2,3.2078]
[1755993969024,0.41799,4786.3,4786.2,0.2254]
[1755993969214,19.43099,4786.3,4786.2,0.4428]
[1755993969418,19.43099,4786.3,4786.2,0.87728629]
[1755993969627,19.43099,4786.3,4786.2,0.71698629]
[1755993969827,19.43099,4786.3,4786.2,0.2174]
[1755993971927,0.41805,4785.7,4785.6,0.6031]
[1755993972132,20.05612,4785.7,4784.9,0.537]
[1755993972330,3.2078,4785.5,4785.0,0.2174]
[1755993972528,0.41808,4785.3,4785.1,0.2254]
[1755993972824,0.41808,4785.3,4785.2,0.2174]
[1755993973323,0.41808,4785.3,4785.2,0.4428]
[1755993973723,0.41808,4785.3,4785.2,0.2174]
[1755993974823,0.41808,4785.3,4785.2,0.4428]
[1755993977429,0.41808,4785.4,4785.3,1.3185]
[1755993977630,19.47908,4785.4,4785.3,1.3185]
[1755993979830,30.51303,4785.9,4785.8,0.3772]
[1755993980021,49.159,4785.9,4785.8,1.3185]
[1755993981531,18.4665,4785.9,4785.8,4.5646]
[1755993981729,18.4665,4785.9,4785.8,5.73654]
[1755993981926,3.2078,4786.7,4786.6,1.3185]
[1755993982127,22.2808,4786.7,4786.6,1.3185]
[1755993982429,19.077,4786.7,4786.6,5.5870665]
[1755993983825,19.081,4786.9,4786.6,6.0050265]
[1755993984031,19.081,4786.9,4786.8,0.5285]
[1755993984232,19.081,4786.9,4786.8,1.5870665]
[1755993985229,19.081,4786.9,4786.8,5.5870665]
[1755993985430,3.2078,4787.4,4787.3,0.5285]
[1755993985633,19.082,4787.4,4787.3,1.3185]
[1755993986438,30.107,4787.5,4787.4,1.3185]
[1755993986631,49.188,4787.5,4787.4,1.3185]
[1755993986831,19.081,4787.5,4787.4,1.58745579]
[1755993988539,19.081,4787.5,4787.4,1.58766168]
[1755993988926,19.081,4787.5,4787.4,1.58766206]
[1755993989429,19.081,4787.5,4787.4,1.5877686]
[1755993990429,19.2292,4787.5,4787.4,1.5877686]
[1755993991038,19.4482,4787.5,4787.4,1.5877686]
[1755993991538,20.0217,4787.5,4787.4,1.5877686]
[1755993992233,20.4042,4787.5,4787.4,0.2692686]
[1755993993339,20.2507,4787.5,4787.4,1.5877686]
[1755993993541,20.4042,4787.5,4787.4,1.5877686]
[1755993994336,20.4042,4787.5,4787.4,0.4295686]
[1755993994532,20.4042,4787.5,4787.4,0.2692686]
[1755993995239,20.3902,4787.5,4787.4,0.2692686]
[1755993997848,0.539,4787.3,4787.2,0.41791]
[1755993998048,1.3371,4787.3,4787.2,0.68719947]
[1755993998248,1.3371,4787.3,4787.2,0.26928947]
[1755993998553,0.539,4787.0,4786.9,3.2078]
[1755993998745,20.3991,4787.0,4786.9,3.47707176]
[1755993999549,20.3991,4787.0,4786.9,3.71557176]
[1755994001053,20.3991,4787.0,4786.9,3.47707176]
[1755994001748,20.3991,4787.0,4786.9,4.02567176]
[1755994002744,20.3991,4787.0,4786.9,0.26927176]
[1755994002949,1.3371,4786.5,4786.4,3.2078]
[1755994003150,20.3941,4786.5,4786.4,3.2078]
[1755994003350,20.81207,4786.5,4786.4,3.2078]
[1755994003550,0.539,4786.0,4785.9,0.2385]
[1755994003751,20.3941,4786.0,4785.9,0.43457354]
[1755994003953,20.3941,4786.0,4785.8,0.41803]
[1755994004151,19.596,4786.0,4785.8,0.41803]
[1755994004351,1.3371,4785.9,4785.8,0.65653]
[1755994004654,1.3371,4785.9,4785.8,0.85260609]
[1755994005042,1.3371,4785.9,4785.8,1.16270609]
[1755994005551,1.3371,4785.9,4785.8,1.73570609]
[1755994005853,1.3371,4785.9,4785.8,1.95940609]
[1755994007855,0.3847,4785.9,4785.8,1.95940609]
[1755994008346,0.3847,4785.9,4785.8,1.95940594]
[1755994008548,0.7179,4785.9,4785.8,1.95940594]
[1755994008754,1.3371,4785.9,4785.8,1.95940614]
[1755994010351,1.3371,4785.9,4785.8,0.61410614]
[1755994010554,1.3371,4785.9,4785.8,1.95940614]
[1755994010745,1.3371,4785.9,4785.8,1.54137614]
[1755994010947,1.3371,4785.9,4785.8,0.19607614]
[1755994012256,1.3371,4785.9,4785.8,1.54137614]
[1755994012658,1.3371,4785.9,4785.8,0.98277614]
[1755994013058,1.3371,4785.9,4785.8,0.83147614]
[1755994013461,1.3371,4785.9,4785.8,0.59337614]
[1755994014061,1.3371,4785.9,4785.8,1.54137614]
[1755994014860,1.3371,4785.9,4785.8,1.80823034]
[1755994015256,0.3847,4785.9,4785.8,1.80823034]
[1755994015458,1.3371,4785.9,4785.8,0.46293034]
[1755994018262,1.75513,4785.8,4785.7,3.2078]
[1755994018455,1.3371,4785.8,4785.7,3.67071358]
[1755994018761,1.3371,4785.8,4785.7,3.90921358]
[1755994019059,1.3371,4785.8,4785.7,4.55420527]
[1755994019652,1.3371,4785.8,4785.7,4.21930527]
[1755994019962,1.3371,4785.8,4785.7,3.67070527]
[1755994020261,1.3371,4785.8,4785.7,0.46290527]
[1755994021160,5.82609638,4785.8,4785.7,0.26681079]
[1755994022854,5.82609638,4785.8,4784.8,0.2237]
[1755994022855,1.3371,4784.9,4784.8,0.5482]
[1755994023059,20.3731,4784.9,4784.8,1.01114713]
[1755994023554,20.3731,4784.9,4784.8,0.46294713]
[1755994023959,19.8341,4784.9,4784.3,3.4441]
[1755994024159,1.3309,4784.4,4784.3,3.2078]
[1755994024369,20.3709,4784.4,4784.3,3.2078]
[1755994024864,20.3709,4784.4,4783.8,0.75771]
[1755994024865,1.3309,4783.9,4783.8,3.2078]
[1755994025062,20.3709,4783.9,4783.8,4.81437464]
[1755994025663,19.04,4783.9,4783.8,4.81437464]
[1755994025863,19.044,4784.3,4784.2,1.75807]
[1755994026063,19.044,4784.3,4784.2,2.04564464]
[1755994026268,1.0922,4785.2,4785.1,0.5394]
[1755994026466,20.1442,4785.2,4785.1,1.3399]
[1755994027866,20.3829,4785.2,4785.1,1.3399]
[1755994028262,20.3829,4785.2,4785.1,1.1152]
[1755994028463,1.74902,4784.8,4784.7,0.2363]
[1755994028668,20.80102,4784.8,4784.7,0.50277085]
[1755994029474,20.3829,4784.8,4784.7,0.50277085]
[1755994029686,20.3829,4784.8,4784.7,0.2363]
[1755994029868,0.41813,4784.7,4784.4,3.4325]
[1755994030063,1.3309,4784.5,4784.4,3.4441]
[1755994030268,20.3859,4784.5,4784.4,3.9835]
[1755994030468,20.3859,4784.5,4784.4,4.5477]
[1755994030977,19.053,4784.5,4784.4,5.06916481]
[1755994031164,19.053,4784.5,4784.4,5.22936481]
[1755994031770,19.1981,4784.5,4784.4,5.22936481]
[1755994032170,0.7146,4784.8,4784.7,1.75803]
[1755994032371,19.7676,4784.8,4784.7,1.75803]
[1755994032772,0.377,4784.8,4784.7,1.75803]
[1755994033072,20.3869,4784.8,4784.7,1.3399]
[1755994033373,20.3869,4784.8,4784.7,1.60348763]
[1755994036078,20.3869,4784.8,4784.7,1.3399]
[1755994036468,0.9408,4784.7,4784.6,0.41814]
[1755994036669,0.9408,4784.7,4783.8,1.06641]
[1755994036670,0.5227,4784.5,4783.9,0.2363]
[1755994036875,1.099,4784.0,4783.9,1.7581]
[1755994037184,19.436,4784.0,4783.9,2.02175397]
[1755994037379,19.7736,4784.0,4783.9,1.7581]
[1755994037575,20.3899,4784.0,4783.9,2.02175739]
[1755994037878,20.3899,4784.0,4783.9,2.02174769]
[1755994040281,20.3899,4784.0,4783.9,1.7581]
[1755994040476,20.3899,4784.0,4783.9,2.02181589]
[1755994040878,20.3899,4784.0,4783.9,1.79711589]
[1755994041081,20.3899,4784.0,4783.9,1.07051589]
[1755994041574,20.3899,4784.0,4783.9,1.23071589]
[1755994041779,20.3899,4784.0,4783.9,2.02181589]
[1755994042083,20.3899,4784.0,4783.9,0.91821589]
[1755994042384,20.3899,4784.0,4783.9,0.68191589]
[1755994043875,20.3899,4784.0,4783.9,1.23071589]
[1755994044277,20.3899,4784.0,4783.9,0.68191589]
[1755994045085,20.3899,4784.0,4783.9,0.68207774]
[1755994045480,20.3899,4784.0,4783.9,0.91837774]
[1755994045676,20.3899,4784.0,4783.9,0.26387774]
[1755994046783,20.3899,4784.0,4783.8,3.62601]
[1755994046983,20.3899,4784.0,4783.9,0.26401438]
[1755994047485,20.3899,4784.0,4783.9,0.26410372]
[1755994047686,20.3899,4784.0,4783.9,0.26409255]
[1755994048977,20.3899,4784.0,4783.9,1.800156]
[1755994050388,20.3899,4784.0,4783.9,1.80033231]
[1755994050784,20.3899,4784.0,4783.9,1.57563231]
[1755994051390,20.3899,4784.0,4783.9,1.07593231]
[1755994054092,20.3899,4784.0,4783.9,0.84903231]
[1755994056186,20.3899,4784.0,4783.9,0.69673231]
[1755994056692,20.3899,4784.0,4783.9,0.43245921]
[1755994056992,20.3899,4784.0,4783.9,0.69684937]
[1755994057488,19.9833,4784.0,4783.9,1.81564937]
[1755994057693,20.3648,4784.0,4783.9,1.81564937]
[1755994060191,20.3648,4784.0,4783.9,1.22684937]
[1755994060791,20.3648,4784.0,4783.9,1.07784937]
[1755994061886,20.3648,4784.0,4783.9,0.85024937]
[1755994062692,20.3648,4784.0,4783.9,0.69684937]
[1755994063393,20.3648,4784.0,4783.9,0.69684888]
[1755994066798,20.3648,4784.0,4783.9,0.43246302]
[1755994067096,20.3648,4784.0,4783.9,0.70420082]
[1755994067287,20.3648,4784.0,4783.9,0.5080378]
[1755994067491,20.3648,4784.0,4783.9,0.70420077]
[1755994067692,20.3648,4784.0,4783.9,0.70420942]
[1755994069492,20.3648,4784.0,4783.9,0.46790942]
[1755994071091,20.3648,4784.0,4783.9,0.19616297]
[1755994072092,20.3648,4784.0,4783.9,0.43626297]
[1755994072398,1.3348,4784.0,4783.9,1.55506297]
[1755994072693,19.011,4784.2,4784.1,0.149]
[1755994072893,0.7413,4784.3,4784.2,0.94817]
[1755994073101,19.9805,4784.3,4784.2,1.97323297]
[1755994073699,20.2106,4784.3,4784.2,1.97323297]
[1755994073995,20.362,4784.3,4784.2,1.97323297]
[1755994074890,19.9723,4784.3,4784.2,1.97323297]
[1755994075097,20.362,4784.3,4784.2,1.97323297]
[1755994076699,20.362,4784.3,4784.2,1.97320939]
[1755994076897,20.362,4784.3,4784.2,5.18100939]
[1755994077395,20.362,4784.3,4784.2,1.97320939]
[1755994077594,20.362,4784.3,4784.2,5.18100939]
[1755994078603,1.351,4784.3,4784.2,5.18100939]
[1755994078896,20.362,4784.3,4784.2,5.18100939]
[1755994080804,20.362,4784.3,4784.2,1.97320939]
[1755994081004,20.362,4784.3,4784.2,5.18100939]
[1755994082206,20.362,4784.3,4784.2,5.18100931]
[1755994082409,20.362,4784.3,4784.2,5.45848629]
[1755994082895,1.351,4784.3,4784.2,5.45848629]
[1755994083096,20.361,4784.3,4784.2,5.45848629]
[1755994083296,1.351,4784.3,4784.2,5.45848629]
[1755994085510,1.351,4784.3,4784.2,4.98487]
[1755994085810,1.351,4784.3,4784.2,5.45844781]
[1755994086413,1.351,4784.3,4784.2,5.45844387]
[1755994087409,1.3447,4784.9,4784.8,0.5348]
[1755994087613,20.3547,4784.9,4784.8,0.92245456]
[1755994087812,20.3547,4784.9,4784.8,1.26705456]
[1755994089506,20.3547,4784.9,4784.8,4.47485456]
[1755994089715,20.3547,4784.9,4784.8,4.67097537]
[1755994090008,20.3547,4784.9,4784.8,5.42727537]
[1755994091311,20.3547,4784.9,4784.8,5.4272795]
[1755994091513,20.3547,4784.9,4784.8,5.4272796]
[1755994091710,20.3547,4784.9,4784.8,5.2057796]
[1755994092215,20.3547,4784.9,4784.8,5.20536825]
[1755994092415,20.3547,4784.9,4784.8,4.66464321]
[1755994092714,20.3547,4784.9,4784.8,4.51954321]
[1755994093008,20.3547,4784.9,4784.8,1.31174321]
[1755994093214,20.3547,4784.9,4784.8,1.07954321]
[1755994094816,20.3547,4784.9,4784.8,0.92204321]
[1755994095314,20.3547,4784.9,4784.8,2.02294321]
[1755994095518,20.3537,4784.9,4784.8,1.94204225]
[1755994095718,20.3537,4784.9,4784.8,2.21907658]
[1755994096120,20.3537,4784.9,4784.8,2.21907557]
[1755994096820,20.3537,4784.9,4784.8,1.65297557]
[1755994097119,20.3537,4784.9,4784.8,1.11817557]
[1755994097319,20.3527,4784.9,4784.8,1.11817557]
[1755994097614,20.3527,4784.9,4784.8,0.89127557]
[1755994098221,1.3447,4784.9,4784.8,0.89127557]
[1755994098414,20.3527,4784.9,4784.8,0.89127557]
[1755994099421,20.3527,4784.9,4784.8,0.47315557]
[1755994100417,20.3527,4784.9,4784.5,0.41814]
[1755994100418,0.3154,4784.6,4784.5,0.41814]
[1755994100623,19.767,4784.6,4784.5,0.41814]
[1755994103722,0.759,4784.4,4784.3,0.41816]
[1755994103921,19.766,4784.4,4784.3,0.41816]
[1755994108624,19.766,4784.4,4784.2,3.2078]
[1755994108823,0.759,4784.3,4784.2,3.2078]
[1755994112432,0.759,4784.3,4784.2,4.42914392]
[1755994112623,0.759,4784.3,4784.2,4.73174392]
[1755994114127,0.41821,4783.8,4783.7,3.2078]
[1755994114327,0.41821,4783.8,4783.2,3.2078]
[1755994114328,0.7753,4783.3,4783.2,3.2078]
[1755994114629,19.7813,4783.3,4783.2,3.2078]
[1755994115030,0.4571,4783.2,4783.0,0.64017]
[1755994115233,0.7753,4783.1,4783.0,1.74697]
[1755994116736,0.7753,4783.1,4783.0,0.41827]
[1755994116931,0.3182,4783.1,4782.8,0.41829]
[1755994117234,0.7753,4782.9,4782.8,1.58679]
[1755994117436,0.7753,4782.9,4782.8,1.74699]
[1755994120038,0.7753,4782.9,4782.8,1.58679]
[1755994120238,0.7753,4782.9,4782.8,1.74699]
[1755994121338,19.009,4783.3,4783.2,0.3096]
[1755994121541,0.1604,4783.7,4783.6,1.28452]
[1755994121736,19.5556,4783.7,4783.6,1.74692]
[1755994121937,19.7843,4783.7,4783.6,0.2219]
[1755994122139,19.7843,4783.7,4783.3,0.5732]
[1755994122140,19.7843,4783.7,4783.5,0.41823]
[1755994122334,19.7843,4783.7,4783.4,0.5336]
[1755994122335,0.57604,4783.5,4783.4,0.5336]
[1755994122534,0.7753,4783.5,4783.4,0.8663]
[1755994122730,0.7753,4783.5,4783.4,1.0882]
[1755994122939,0.7753,4783.5,4783.4,1.3287]
[1755994124342,19.009,4783.7,4783.4,1.3287]
[1755994124343,19.1694,4783.7,4783.6,0.3734]
[1755994124538,19.1694,4783.7,4783.6,1.3287]
[1755994124840,19.5556,4783.7,4783.6,1.3287]
[1755994126244,19.7843,4783.7,4783.6,1.3287]
[1755994126439,0.5466,4784.1,4784.0,0.95179]
[1755994126640,3.2078,4784.4,4784.3,0.996]
[1755994126945,22.536,4784.4,4784.3,1.3287]
[1755994127142,22.7644,4784.4,4784.3,1.3287]
[1755994127440,19.1704,4784.4,4784.3,1.6018655]
[1755994127635,19.01,4784.4,4784.3,1.6018655]
[1755994127836,19.1704,4784.4,4784.3,1.6018655]
[1755994128038,19.5566,4784.4,4784.3,1.6018655]
[1755994128643,19.5566,4784.4,4784.3,1.3287]
[1755994128838,19.5566,4784.4,4784.3,1.60188629]
[1755994130744,19.7853,4784.4,4784.3,1.60188629]
[1755994132947,0.3182,4784.4,4784.3,1.60188629]
[1755994133150,0.5466,4784.7,4784.6,1.41414]
[1755994133345,19.5556,4784.7,4784.6,2.02002629]
[1755994133643,0.3888,4785.4,4785.3,0.5336]
[1755994133850,0.5466,4785.7,4785.6,1.74675]
[1755994134148,19.5556,4785.7,4785.6,2.01993629]
[1755994135349,19.7843,4785.7,4785.6,2.01985475]
[1755994136044,19.7843,4785.7,4785.6,2.0197691]
[1755994136751,19.5546,4785.7,4785.6,2.0197691]
[1755994137245,0.5466,4786.1,4786.0,1.74672]
[1755994137452,19.5546,4786.1,4786.0,1.74672]
[1755994138550,19.7833,4786.1,4786.0,1.74672]
[1755994139551,19.5546,4786.1,4786.0,1.74672]
[1755994140246,19.7833,4786.1,4786.0,1.74672]
[1755994142554,0.4571,4786.0,4785.7,3.2078]
[1755994142856,0.7753,4785.0,4784.9,0.2219]
[1755994143049,19.7803,4785.0,4784.9,0.49440105]
[1755994143249,19.7803,4785.0,4784.9,1.06760105]
[1755994143453,19.7803,4785.0,4784.9,1.60120105]
[1755994144059,19.7803,4785.0,4784.9,1.60116678]
[1755994144259,19.7803,4785.0,4784.9,1.6011664]
[1755994145957,19.7812,4785.0,4784.9,0.2724664]
[1755994148546,19.7812,4785.0,4784.6,3.2078]
[1755994148547,0.3076,4784.7,4784.6,3.2078]
[1755994148751,0.1946,4784.2,4784.1,0.41818]
[1755994148957,0.1946,4784.0,4783.9,3.2078]
[1755994149261,0.1946,4784.0,4783.9,3.4286]
[1755994149262,0.4598,4784.0,4783.9,3.4286]
[1755994149461,0.4598,4784.0,4783.9,0.2208]
[1755994149763,0.1946,4784.0,4783.8,0.4182]
[1755994149964,0.4598,4783.9,4783.8,0.639]
[1755994150156,0.4598,4783.9,4783.8,0.9024089]
[1755994150559,0.4348,4783.9,4783.8,0.9024089]
[1755994150759,0.4348,4783.9,4783.8,2.0113089]
[1755994154064,0.4348,4783.9,4783.8,2.01329289]
[1755994154856,0.1946,4784.9,4784.8,0.41812]
[1755994155056,19.3989,4785.1,4785.0,1.3297]
[1755994155256,19.005,4785.1,4785.0,1.59508969]
[1755994155560,0.4348,4785.5,4785.4,1.74777]
[1755994155758,19.013,4785.5,4785.4,2.01321363]
[1755994155962,0.1537,4786.2,4786.1,1.74771]
[1755994156158,19.1737,4786.2,4786.1,2.01311542]
[1755994156561,19.4539,4786.2,4786.1,2.01311542]
[1755994156858,19.4548,4786.2,4786.1,2.01311542]
[1755994157260,19.1737,4786.2,4786.1,2.01311542]
[1755994157859,19.2137,4786.2,4786.1,2.01311542]
[1755994158059,19.4548,4786.2,4786.1,2.01311542]
[1755994158455,19.4548,4786.2,4786.1,0.90421542]
[1755994158663,19.4548,4786.2,4786.1,0.48620542]
[1755994160063,19.4548,4786.2,4786.1,0.2208]
[1755994160466,19.4798,4786.2,4786.1,0.2208]
[1755994160664,19.2852,4786.2,4785.3,3.2078]
[1755994160867,0.4348,4785.4,4785.3,4.0912]
[1755994161068,0.4348,4785.4,4785.3,4.35655864]
[1755994161263,0.4348,4785.4,4785.3,5.22093864]
[1755994161469,0.1537,4785.4,4785.3,5.22093864]
[1755994162471,19.4488,4785.7,4785.6,0.95785]
[1755994162769,0.1937,4786.1,4786.0,1.74772]
[1755994162969,19.2127,4786.1,4786.0,1.74772]
[1755994163163,19.4538,4786.1,4786.0,1.74772]
[1755994163373,19.4788,4786.1,4786.0,0.2208]
[1755994163562,0.1946,4785.7,4785.6,0.2208]
[1755994163761,0.4598,4785.7,4785.6,0.48619597]
[1755994163959,0.4348,4785.7,4785.6,0.48619597]
[1755994164170,0.4348,4785.7,4785.6,0.64520026]
[1755994164567,0.4348,4785.7,4785.6,1.59510026]
[1755994167576,0.4348,4785.7,4785.6,1.02600026]
[1755994167775,0.4598,4785.7,4785.6,0.26540026]
[1755994168077,0.87788,4785.3,4785.2,0.2208]
[1755994168277,19.87988,4785.3,4785.2,0.9571]
[1755994168480,19.028,4785.3,4785.2,2.01320645]
[1755994168881,19.4604,4785.3,4785.2,1.59512645]
[1755994169278,0.41807,4785.4,4785.2,1.59512645]
[1755994169279,0.4324,4785.8,4785.7,0.95784]
[1755994169480,3.6402,4786.3,4786.2,1.7477]
[1755994169779,22.2408,4786.3,4786.2,1.7477]
[1755994170080,19.4654,4786.3,4786.2,1.7477]
[1755994170481,19.1867,4786.3,4786.2,1.7477]
[1755994172379,19.4654,4786.3,4786.2,1.0315]
[1755994172676,19.4654,4786.3,4786.2,1.257]
[1755994172981,19.4654,4786.3,4786.2,1.7477]
[1755994173182,19.4654,4786.3,4786.2,1.3297]
[1755994173885,0.4324,4786.3,4786.2,1.3297]
[1755994175579,0.4324,4786.3,4786.2,0.4463]
[1755994175785,0.4324,4786.3,4786.2,1.3176]
[1755994177990,0.4324,4786.3,4786.2,0.2208]
[1755994177991,0.4573,4786.3,4786.2,0.2208]
[1755994178487,0.4324,4786.3,4786.2,0.2208]
[1755994178689,0.4324,4786.3,4786.2,0.3695]
[1755994179287,0.4324,4786.3,4786.2,0.7584]
[1755994179487,0.4324,4786.3,4786.2,1.3202]
[1755994179783,0.4324,4786.3,4785.8,3.77453]
[1755994179784,0.1989,4785.9,4785.8,3.77453]
[1755994179984,19.4659,4785.9,4785.8,0.26533792]
[1755994180386,19.4659,4785.9,4785.8,0.49263792]
[1755994182781,19.441,4785.9,4785.8,1.10943792]
[1755994183076,19.441,4785.9,4785.8,1.59203792]
[1755994183281,19.2339,4785.9,4785.8,4.79983792]
[1755994183689,19.1941,4785.9,4785.8,4.79983792]
[1755994184186,19.1941,4785.9,4785.8,4.79952523]
[1755994184384,19.452,4785.9,4785.8,4.79952523]
[1755994184581,19.452,4785.9,4785.8,4.79978697]
[1755994188986,19.452,4785.9,4785.8,1.59198697]
[1755994190384,19.452,4785.9,4785.8,0.49258697]
[1755994190385,19.4769,4785.9,4785.8,0.49258697]
[1755994190581,19.452,4785.9,4785.8,0.49258697]
[1755994190985,19.452,4785.9,4785.8,0.64128697]
[1755994191190,19.452,4785.9,4785.8,0.86938697]
[1755994191483,31.16487,4786.8,4785.9,1.04507]
[1755994191484,0.2181,4786.4,4785.9,1.04507]
[1755994191683,0.3772,4786.4,4786.3,4.95249]
[1755994191884,0.3772,4786.4,4786.3,5.21777697]
[1755994193589,30.75605,4786.8,4786.7,1.74466]
[1755994193786,30.75605,4786.8,4786.7,0.376]
[1755994193787,1.33007159,4786.8,4786.7,0.376]
[1755994193992,20.38707159,4786.8,4786.7,0.64791871]
[1755994194192,20.38707183,4786.8,4786.7,0.64791871]
[1755994194392,20.38707183,4786.8,4786.7,0.88791871]
[1755994194595,19.96912183,4786.8,4786.7,1.44971871]
[1755994194892,19.96912183,4786.8,4786.7,1.59861871]
[1755994195486,19.96912183,4786.8,4786.7,1.26491871]
[1755994197194,19.96912183,4786.8,4786.7,1.59861871]
[1755994197492,19.99402183,4786.8,4786.7,0.49921871]
[1755994198097,19.99402183,4786.8,4786.7,0.27191871]
[1755994199396,19.99402183,4786.8,4786.7,0.49921871]
[1755994199697,19.99402183,4786.8,4785.7,1.06591]
[1755994199698,28.04781183,4786.8,4786.0,0.2273]
[1755994199896,0.3772,4786.1,4786.0,0.2273]
[1755994200194,19.4212,4786.1,4786.0,0.2273]
[1755994200394,19.83921,4786.1,4786.0,0.2273]
[1755994200594,20.33441707,4786.1,4786.0,0.2273]
[1755994201192,19.83921,4786.1,4786.0,0.2273]
[1755994202096,20.33441671,4786.1,4786.0,0.2273]
[1755994202393,19.53920671,4786.1,4785.7,3.2078]
[1755994202597,0.3772,4785.8,4785.7,3.4351]
[1755994202799,19.4392,4785.8,4785.7,3.631191]
[1755994203195,19.4392,4785.8,4785.7,3.63119106]
[1755994203596,19.4392,4785.8,4785.3,0.2281]
[1755994203597,0.79758,4785.3,4785.2,0.2273]
[1755994203796,0.80451,4784.9,4784.8,0.2287]
[1755994203995,0.80451,4784.9,4784.8,0.42482307]
[1755994203996,19.4564,4784.9,4784.8,0.42482307]
[1755994204195,19.4564,4784.9,4784.8,0.3736]
[1755994204397,19.4564,4784.9,4784.8,1.1688]
[1755994204597,0.3864,4785.6,4785.5,1.0857]
[1755994204797,19.4594,4785.6,4785.5,1.3144]
[1755994208802,19.4594,4785.6,4785.5,0.9808]
[1755994209000,19.4594,4785.6,4785.5,0.606]
[1755994209200,19.4644,4785.6,4785.5,0.606]
[1755994209604,0.3864,4785.6,4785.5,0.606]
[1755994209903,19.4624,4785.6,4785.5,0.606]
[1755994210307,19.4624,4785.6,4785.5,0.2287]
[1755994211408,0.3864,4785.6,4785.5,1.3144]
[1755994211608,19.4594,4785.6,4785.5,1.58708069]
[1755994211903,19.4594,4785.6,4785.5,1.25348069]
[1755994212100,19.4594,4785.6,4785.5,0.87868069]
[1755994212500,19.4594,4785.6,4785.5,1.1688]
[1755994212703,19.4594,4785.6,4785.5,1.44147579]
[1755994213209,19.4594,4785.6,4785.5,1.44147956]
[1755994214896,19.4554,4785.6,4785.5,1.58707956]
[1755994215308,19.45,4785.6,4785.5,1.58707956]
[1755994216508,0.385,4785.9,4785.6,0.4579]
[1755994216706,0.385,4785.9,4785.8,4.94023]
[1755994216912,19.453,4785.9,4785.8,5.21290956]
[1755994218412,19.453,4785.9,4785.8,5.22269955]
[1755994218614,19.4544,4785.9,4785.8,5.22269955]
[1755994219711,19.4544,4785.9,4785.8,2.01489955]
[1755994219911,19.4544,4785.9,4785.8,5.22269955]
[1755994222607,19.4544,4785.9,4785.8,5.22231759]
[1755994222807,19.4544,4785.9,4785.8,2.01451759]
[1755994223113,19.4544,4785.9,4785.8,5.22231759]
[1755994228219,19.4544,4785.9,4785.8,4.51391759]
[1755994229018,19.4544,4785.9,4785.8,4.74311759]
[1755994229219,19.4544,4785.9,4785.8,5.07671759]
[1755994229416,19.4544,4785.9,4785.8,5.27093404]
[1755994229615,0.3864,4785.9,4785.8,5.41653404]
[1755994231820,0.0009,4785.9,4785.8,5.41653404]
[1755994232024,0.3841,4786.8,4786.7,0.5229]
[1755994232319,19.92192845,4786.8,4786.7,1.59648759]
[1755994232621,0.87992845,4786.8,4786.7,1.61243865]
[1755994232819,49.154,4787.3,4787.2,1.3144]
[1755994233021,0.1475,4787.3,4787.2,2.03032903]
[1755994233526,0.3841,4787.3,4787.2,2.03032903]
[1755994233821,0.3657,4788.0,4787.9,1.74845]
[1755994234021,19.4137,4788.0,4787.9,0.91241903]
[1755994234623,19.4137,4788.0,4787.9,0.29801903]
[1755994234822,19.4137,4788.0,4787.9,0.52321903]
[1755994235325,19.4137,4788.0,4787.9,0.67331903]
[1755994235526,19.4107,4788.0,4787.9,1.62861903]
[1755994236731,19.4107,4788.0,4787.9,0.52321903]
[1755994238734,19.4107,4788.0,4787.9,0.67331903]
[1755994238932,19.4107,4788.0,4787.9,1.13531903]
[1755994239128,19.4107,4788.0,4787.9,1.47241903]
[1755994239334,0.41782,4788.4,4788.3,1.74842]
[1755994239335,19.4057,4788.4,4788.3,1.74842]
[1755994239630,19.4057,4788.4,4788.3,2.04643903]
[1755994240425,19.4057,4788.4,4788.3,0.94103903]
[1755994240624,0.3657,4788.4,4788.3,0.94103903]
[1755994240827,19.4037,4788.4,4788.3,0.52321903]
[1755994241526,19.4037,4788.4,4788.3,0.29801903]
[1755994241830,19.4037,4788.4,4788.3,0.52321903]
[1755994242026,19.4007,4788.4,4788.3,0.67331903]
[1755994242227,19.4007,4788.4,4788.3,1.1744]
[1755994242427,19.4007,4788.4,4788.3,1.46239294]